bitfinex/quotes_BTCUSD_20260125
["timestamp","ask_amount","ask_price","bid_price","bid_amount"]
[1769365277885,0.0908662,87715.0,87703.0,0.0256628]
[1769365278093,0.0908662,87716.0,87703.0,0.0256628]
[1769365278312,0.0908662,87717.0,87703.0,0.0256628]
[1769365278493,0.14801572,87724.0,87703.0,0.0256628]
[1769365278494,0.0908662,87718.0,87703.0,0.21792097]
[1769365278730,0.13661634,87728.0,87706.0,1.13901497]
[1769365278940,0.01139873,87729.0,87710.0,1.13901497]
[1769365279123,0.01139886,87728.0,87713.0,0.19225817]
[1769365279458,0.01139951,87723.0,87713.0,0.07809444]
[1769365279669,0.01139873,87729.0,87713.0,0.07809444]
[1769365279901,0.01139886,87728.0,87714.0,0.0188597]
[1769365280112,0.01139938,87724.0,87714.0,0.0188597]
[1769365280317,0.01139925,87725.0,87713.0,0.07809444]
[1769365281107,0.01139938,87724.0,87713.0,0.07809444]
[1769365281309,0.01140042,87716.0,87702.0,0.19225817]
[1769365281490,0.01140055,87715.0,87703.0,0.02332982]
[1769365281692,0.01140016,87718.0,87703.0,0.02332982]
[1769365281914,0.01140016,87718.0,87703.0,0.21558799]
[1769365282357,0.01140068,87714.0,87703.0,0.21558799]
[1769365282638,0.01140016,87718.0,87703.0,0.21558799]
[1769365282851,0.12612142,87721.0,87704.0,0.11160278]
[1769365283062,0.0113999,87720.0,87705.0,0.19225817]
[1769365283272,0.01139977,87721.0,87705.0,0.19225817]
[1769365283686,0.01140003,87719.0,87705.0,0.19225817]
[1769365284086,0.01139899,87727.0,87705.0,0.19225817]
[1769365284245,0.0004731,87734.0,87708.0,1.13901497]
[1769365284246,0.01139821,87733.0,87708.0,1.13901497]
[1769365284446,0.01139847,87731.0,87712.0,1.13901497]
[1769365284672,0.0113986,87730.0,87713.0,0.19225817]
[1769365284848,0.0004731,87734.0,87714.0,1.13901497]
[1769365285053,0.22792388,87749.0,87718.0,1.13901497]
[1769365285054,0.00683852,87746.0,87718.0,1.13901497]
[1769365285281,0.01139744,87739.0,87722.0,0.19225817]
[1769365285435,0.06838467,87739.0,87724.0,0.19225817]
[1769365285635,0.01139744,87739.0,87725.0,0.19225817]
[1769365285860,0.01139744,87739.0,87726.0,0.19225817]
[1769365286063,0.01139795,87735.0,87726.0,0.19225817]
[1769365286278,0.01139782,87736.0,87726.0,0.30386095]
[1769365286737,1.10559054,87740.0,87726.0,0.30386095]
[1769365286942,0.01139731,87740.0,87718.0,0.0004731]
[1769365287149,0.01139718,87741.0,87719.0,1.33127314]
[1769365287447,0.01139718,87741.0,87721.0,1.13901497]
[1769365287679,0.11366259,87740.0,87724.0,0.19225817]
[1769365287898,0.11366259,87740.0,87718.0,0.0004731]
[1769365287899,0.12801671,87764.0,87727.0,1.15041396]
[1769365288165,0.12801671,87764.0,87726.0,0.05699506]
[1769365288166,0.0113951,87757.0,87731.0,1.13901497]
[1769365288385,0.0113951,87757.0,87723.0,0.18487086]
[1769365288386,0.01139432,87763.0,87735.0,0.19225817]
[1769365288598,0.01139458,87761.0,87739.0,0.19225817]
[1769365288837,0.01139432,87763.0,87736.0,0.05761133]
[1769365288838,0.01139393,87766.0,87743.0,0.19225817]
[1769365289037,0.01139406,87765.0,87745.0,0.19225817]
[1769365289446,0.01139445,87762.0,87745.0,0.19225817]
[1769365289668,0.01139458,87761.0,87745.0,0.19225817]
[1769365289874,0.01139432,87763.0,87746.0,0.11160278]
[1769365290094,0.01139419,87764.0,87746.0,0.30386095]
[1769365290305,0.01139393,87766.0,87746.0,0.30386095]
[1769365290510,0.01157028,87771.0,87749.0,0.19225817]
[1769365290713,0.01139341,87770.0,87749.0,0.19225817]
[1769365290917,0.01139393,87766.0,87749.0,0.19225817]
[1769365291121,0.01139406,87765.0,87749.0,0.19225817]
[1769365291247,0.01139393,87766.0,87749.0,0.19225817]
[1769365291458,0.01139406,87765.0,87749.0,0.19225817]
[1769365291658,0.01139419,87764.0,87749.0,0.19225817]
[1769365291862,0.01139406,87765.0,87749.0,0.19225817]
[1769365292534,0.01139393,87766.0,87749.0,0.19225817]
[1769365292743,0.06836096,87770.0,87749.0,0.19225817]
[1769365292946,0.01139367,87768.0,87751.0,0.19225817]
[1769365293155,0.01139367,87768.0,87751.0,0.07158084]
[1769365293578,0.13187194,87771.0,87750.0,0.0188597]
[1769365293579,0.000177,87771.0,87754.0,1.06113936]
[1769365293802,0.01139367,87768.0,87736.0,0.01139782]
[1769365294017,0.01139406,87765.0,87740.0,1.06113936]
[1769365294226,0.01157028,87771.0,87748.0,1.06113936]
[1769365294432,0.01157028,87771.0,87740.0,0.3724568]
[1769365294433,0.05714362,87771.0,87752.0,1.06113936]
[1769365294678,0.05714362,87771.0,87754.0,1.06113936]
[1769365294679,0.01157028,87771.0,87754.0,1.06113936]
[1769365294886,0.0113938,87767.0,87755.0,0.18390349]
[1769365295156,0.000177,87771.0,87756.0,1.06113936]
[1769365295363,0.000177,87771.0,87756.0,1.24504285]
[1769365295540,0.000177,87771.0,87757.0,0.18390349]
[1769365296324,0.000177,87771.0,87743.0,0.01139692]
[1769365296325,0.000177,87771.0,87761.0,0.18390349]
[1769365296526,0.000177,87771.0,87761.0,1.06113936]
[1769365296776,0.000177,87771.0,87762.0,0.18390349]
[1769365297339,0.000177,87771.0,87763.0,0.18390349]
[1769365298001,0.01157028,87771.0,87763.0,0.18390349]
[1769365298174,0.01139341,87770.0,87763.0,0.18390349]
[1769365298772,0.01139393,87766.0,87757.0,1.06113936]
[1769365298991,0.01139393,87766.0,87757.0,1.24504285]
[1769365299188,0.0113938,87767.0,87748.0,0.18390349]
[1769365299506,0.01139484,87759.0,87751.0,0.18390349]
[1769365299668,0.06836676,87762.0,87751.0,0.18390349]
[1769365299868,0.01139445,87762.0,87751.0,0.18390349]
[1769365300079,0.0113951,87757.0,87748.0,0.00014177]
[1769365300279,0.01139523,87756.0,87748.0,0.00014177]
[1769365300482,0.01139536,87755.0,87748.0,0.00014177]
[1769365300687,0.01139523,87756.0,87748.0,0.0185463]
[1769365300893,0.25441477,87779.0,87750.0,0.18390349]
[1769365301104,0.05696981,87766.0,87753.0,1.06113936]
[1769365301310,0.05697232,87762.0,87748.0,0.0185463]
[1769365301525,0.01139484,87759.0,87748.0,0.00014177]
[1769365301948,0.01139471,87760.0,87748.0,0.00014177]
[1769365302160,0.01139484,87759.0,87748.0,0.18404526]
[1769365302370,0.19745289,87766.0,87748.0,0.18404526]
[1769365302371,0.01139406,87765.0,87750.0,0.18390349]
[1769365302617,0.01139367,87768.0,87752.0,0.18390349]
[1769365302802,0.01139354,87769.0,87752.0,1.24504285]
[1769365303013,0.01139289,87774.0,87755.0,0.18390349]
[1769365303230,0.06835481,87778.0,87759.0,0.18390349]
[1769365303448,0.11323996,87777.0,87760.0,0.18390349]
[1769365303679,0.01139276,87775.0,87760.0,0.18390349]
[1769365304317,0.01139302,87773.0,87760.0,0.18390349]
[1769365304535,0.19745289,87782.0,87748.0,0.00014177]
[1769365304536,0.06836446,87765.0,87748.0,0.00014177]
[1769365304742,0.01139419,87764.0,87748.0,0.00014177]
[1769365304943,0.01139432,87763.0,87748.0,0.00014177]
[1769365305169,0.01139458,87761.0,87749.0,0.0017622]
[1769365305379,0.01139549,87754.0,87748.0,0.00014177]
[1769365305573,0.01139536,87755.0,87748.0,0.00014177]
[1769365305782,0.01139484,87759.0,87748.0,0.00014177]
[1769365305986,0.0113951,87757.0,87748.0,0.00014177]
[1769365306278,0.01139484,87759.0,87748.0,0.00014177]
[1769365306490,0.0113951,87757.0,87748.0,0.00014177]
[1769365306698,0.01139523,87756.0,87748.0,0.00014177]
[1769365307122,0.01139536,87755.0,87748.0,0.00014177]
[1769365307327,0.01139523,87756.0,87748.0,0.00014177]
[1769365307535,0.01139536,87755.0,87748.0,0.00014177]
[1769365307981,0.01139523,87756.0,87748.0,0.00014177]
[1769365308185,0.01139562,87753.0,87748.0,0.00014177]
[1769365308398,0.01139471,87760.0,87748.0,0.00014177]
[1769365308579,0.2088476,87760.0,87748.0,0.00014177]
[1769365309018,0.01139484,87759.0,87748.0,0.00014177]
[1769365309232,0.0113938,87767.0,87749.0,1.06113936]
[1769365309436,0.12480133,87766.0,87749.0,1.06113936]
[1769365309641,0.1134074,87765.0,87749.0,1.06113936]
[1769365309862,0.1134074,87765.0,87750.0,0.18390349]
[1769365310068,0.1134074,87764.0,87750.0,0.18390349]
[1769365310245,0.01139393,87766.0,87750.0,0.18390349]
[1769365310246,0.1134074,87763.0,87750.0,0.18390349]
[1769365310460,0.01139393,87766.0,87750.0,0.18390349]
[1769365310665,0.124835,87765.0,87750.0,0.18390349]
[1769365310868,0.12483513,87764.0,87750.0,0.18390349]
[1769365311093,0.11344094,87763.0,87750.0,0.18390349]
[1769365311294,0.11344094,87762.0,87750.0,0.18390349]
[1769365311498,0.01139406,87765.0,87750.0,0.18390349]
[1769365311730,0.11347925,87764.0,87750.0,0.18390349]
[1769365312150,0.11347925,87763.0,87750.0,0.18390349]
[1769365312331,0.11347925,87762.0,87750.0,0.18390349]
[1769365312585,0.11347925,87761.0,87750.0,0.18390349]
[1769365312770,0.52813792,87766.0,87750.0,0.18390349]
[1769365313034,0.11353188,87765.0,87750.0,0.18390349]
[1769365313238,0.11353188,87764.0,87750.0,0.18390349]
[1769365313411,0.11353188,87763.0,87750.0,0.18390349]
[1769365313560,0.01139406,87765.0,87750.0,0.18390349]
[1769365313561,0.11353188,87762.0,87750.0,0.18390349]
[1769365313767,0.11353188,87761.0,87750.0,0.18390349]
[1769365313980,0.11353188,87760.0,87750.0,0.18390349]
[1769365314201,0.11353188,87759.0,87750.0,0.18390349]
[1769365314399,0.11353188,87758.0,87750.0,0.18390349]
[1769365314598,0.11353188,87757.0,87750.0,0.18390349]
[1769365314813,0.11353188,87756.0,87750.0,0.18390349]
[1769365315070,0.01139406,87765.0,87750.0,0.18390349]
[1769365315275,0.11373335,87764.0,87750.0,0.18390349]
[1769365315476,0.11373335,87763.0,87750.0,0.18390349]
[1769365315723,0.11373335,87762.0,87750.0,0.18390349]
[1769365315925,0.11373335,87761.0,87750.0,0.18390349]
[1769365316161,0.11373335,87760.0,87750.0,0.18390349]
[1769365316353,0.11373335,87759.0,87750.0,1.24504285]
[1769365316504,0.11373335,87758.0,87750.0,1.24504285]
[1769365316721,0.11373335,87757.0,87750.0,1.24504285]
[1769365316919,0.11373335,87756.0,87750.0,0.18390349]
[1769365317116,0.11373335,87755.0,87750.0,0.18390349]
[1769365317419,0.11373335,87754.0,87748.0,0.00014177]
[1769365317615,0.11373335,87753.0,87748.0,0.00014177]
[1769365317847,0.01139484,87759.0,87748.0,0.00014177]
[1769365318076,0.11391567,87758.0,87749.0,0.01840453]
[1769365318277,0.11391567,87757.0,87749.0,0.01840453]
[1769365318504,0.11391567,87756.0,87749.0,0.01840453]
[1769365318636,0.11391567,87755.0,87749.0,0.01840453]
[1769365318838,0.11391567,87754.0,87749.0,0.01840453]
[1769365319069,0.11391567,87753.0,87750.0,0.02024498]
[1769365319276,0.11391567,87752.0,87750.0,0.02024498]
[1769365319529,0.11391567,87751.0,87750.0,0.02024498]
[1769365319872,0.11391567,87751.0,87748.0,0.00014177]
[1769365320067,0.11391567,87750.0,87748.0,0.00014177]
[1769365320308,0.11391567,87749.0,87748.0,0.00014177]
[1769365321246,0.12531181,87749.0,87733.0,1.23629936]
[1769365321478,0.11391567,87748.0,87734.0,0.18390349]
[1769365321683,0.10391567,87747.0,87737.0,1.24504285]
[1769365322013,0.00014188,87749.0,87738.0,1.06113936]
[1769365322217,0.13641706,87764.0,87741.0,0.18390349]
[1769365322422,0.13641706,87766.0,87745.0,0.18390349]
[1769365322567,0.01139393,87766.0,87748.0,1.06113936]
[1769365322775,0.01139406,87765.0,87749.0,0.18390349]
[1769365322996,0.01139419,87764.0,87749.0,0.18390349]
[1769365323446,0.01139406,87765.0,87749.0,0.18390349]
[1769365323913,0.01139445,87762.0,87749.0,0.18390349]
[1769365324125,0.52827838,87763.0,87749.0,0.18390349]
[1769365324644,0.01139445,87762.0,87749.0,0.18390349]
[1769365324975,0.5396727,87763.0,87749.0,0.18390349]
[1769365325183,0.59664463,87763.0,87749.0,0.18390349]
[1769365325406,0.01139406,87765.0,87749.0,0.18390349]
[1769365325621,0.20884656,87768.0,87750.0,1.35395643]
[1769365325775,0.73712494,87768.0,87750.0,1.35395643]
[1769365325970,0.0001209,87769.0,87750.0,1.17180324]
[1769365326200,0.0001209,87769.0,87754.0,1.1533987]
[1769365326404,0.0001209,87769.0,87757.0,0.18215319]
[1769365326611,0.0001209,87769.0,87759.0,1.1533987]
[1769365326767,0.0001209,87769.0,87760.0,0.18215319]
[1769365327170,0.01,87760.0,87758.0,0.01821532]
[1769365327417,0.0001209,87769.0,87758.0,0.01821532]
[1769365327849,0.01139367,87768.0,87758.0,0.01821532]
[1769365328059,0.0113938,87767.0,87759.0,0.02630718]
[1769365328273,0.01139367,87768.0,87759.0,0.02630718]
[1769365328636,0.0113938,87767.0,87759.0,0.02630718]
[1769365329482,0.01139406,87765.0,87759.0,1e-08]
[1769365329686,0.01139419,87764.0,87759.0,1e-08]
[1769365329890,0.01139445,87762.0,87755.0,0.18215319]
[1769365330454,0.01139458,87761.0,87755.0,0.18215319]
[1769365330662,0.01139471,87760.0,87755.0,0.18215319]
[1769365330861,0.01139536,87755.0,87745.0,0.00014188]
[1769365331063,0.01139523,87756.0,87745.0,0.18229507]
[1769365331279,0.01139536,87755.0,87745.0,0.18229507]
[1769365331800,0.01139523,87756.0,87745.0,0.18229507]
[1769365332386,0.01139484,87759.0,87745.0,0.18229507]
[1769365332588,0.01139523,87756.0,87745.0,0.18229507]
[1769365332849,0.01139484,87759.0,87745.0,0.18229507]
[1769365333459,0.01139471,87760.0,87745.0,0.18229507]
[1769365333668,0.12536582,87759.0,87745.0,0.18229507]
[1769365333867,0.11397098,87758.0,87745.0,0.18229507]
[1769365334069,0.11397098,87757.0,87745.0,0.18229507]
[1769365334290,0.11397098,87756.0,87745.0,0.18229507]
[1769365334498,0.11397098,87755.0,87745.0,0.18229507]
[1769365334693,0.11397098,87754.0,87745.0,0.18229507]
[1769365334898,0.11397098,87753.0,87745.0,0.18229507]
[1769365335067,0.11397098,87752.0,87745.0,0.18229507]
[1769365335302,0.11397098,87751.0,87745.0,0.18229507]
[1769365335475,0.11397098,87750.0,87747.0,0.18983822]
[1769365335755,0.11397098,87749.0,87747.0,0.18983822]
[1769365335927,0.11397098,87748.0,87747.0,0.18983822]
[1769365336680,0.11397098,87748.0,87745.0,0.00014188]
[1769365336888,0.01139536,87755.0,87745.0,0.1899801]
[1769365337123,0.11397788,87754.0,87745.0,0.1899801]
[1769365337262,0.11397788,87753.0,87745.0,0.1899801]
[1769365337594,0.12537363,87752.0,87745.0,0.00014188]
[1769365337865,0.0212553,87741.0,87733.0,0.17516]
[1769365338074,0.0212553,87741.0,87710.0,0.0116712]
[1769365338075,0.53114333,87736.0,87712.0,0.18983822]
[1769365338283,0.00997669,87741.0,87717.0,0.18983822]
[1769365338284,0.11397788,87735.0,87717.0,0.18983822]
[1769365338486,0.11397788,87734.0,87721.0,0.18983822]
[1769365338693,0.00011857,87741.0,87724.0,1.12053277]
[1769365338921,0.00011857,87741.0,87728.0,1.12053277]
[1769365339125,0.00011857,87741.0,87730.0,0.18983822]
[1769365339319,0.00011857,87741.0,87706.0,0.01140172]
[1769365339519,0.65537874,87740.0,87718.0,0.12787359]
[1769365339744,0.19008167,87740.0,87719.0,0.18983822]
[1769365339885,0.19008167,87740.0,87720.0,0.18983822]
[1769365339886,0.01139757,87738.0,87720.0,0.18983822]
[1769365340088,0.64398143,87731.0,87713.0,0.18983822]
[1769365340311,0.64398143,87731.0,87713.0,1.12053277]
[1769365340523,0.64398143,87731.0,87715.0,0.18983822]
[1769365340726,0.64398143,87731.0,87715.0,1.12053277]
[1769365340930,0.01139821,87733.0,87716.0,0.18983822]
[1769365341242,0.6441,87741.0,87719.0,0.18983822]
[1769365341442,0.64398143,87737.0,87720.0,0.19760293]
[1769365341980,0.64398143,87737.0,87721.0,0.18983822]
[1769365342624,0.65537964,87733.0,87721.0,0.18983822]
[1769365342836,0.01139899,87727.0,87713.0,0.18983822]
[1769365343057,0.01139925,87725.0,87713.0,0.00113565]
[1769365343264,0.64398143,87725.0,87710.0,0.00027]
[1769365343477,0.01139808,87734.0,87712.0,0.18983822]
[1769365343677,0.01139808,87734.0,87714.0,1.12053277]
[1769365343678,0.01139847,87731.0,87714.0,1.12053277]
[1769365343888,0.01139834,87732.0,87715.0,0.18983822]
[1769365344107,0.01139821,87733.0,87717.0,0.18983822]
[1769365344311,0.01139834,87732.0,87718.0,0.18983822]
[1769365344483,0.01139847,87731.0,87718.0,0.18983822]
[1769365344691,0.0113986,87730.0,87718.0,0.18983822]
[1769365345111,0.01139873,87729.0,87718.0,0.18983822]
[1769365345317,0.64398143,87724.0,87710.0,0.00027]
[1769365345719,0.01139951,87723.0,87710.0,0.00027]
[1769365345922,0.01139977,87721.0,87710.0,0.00027]
[1769365346303,0.65538081,87724.0,87710.0,0.00027]
[1769365346507,0.01139964,87722.0,87710.0,0.00027]
[1769365346848,0.01139951,87723.0,87710.0,0.00027]
[1769365347056,0.01139977,87721.0,87710.0,0.00027]
[1769365347238,0.65538198,87715.0,87710.0,0.00027]
[1769365347605,0.01140081,87713.0,87701.0,0.18983822]
[1769365347803,0.01140107,87711.0,87701.0,0.18983822]
[1769365348235,0.01140094,87712.0,87701.0,0.18983822]
[1769365348436,0.63476784,87714.0,87701.0,0.18983822]
[1769365348877,0.63488634,87714.0,87701.0,0.18983822]
[1769365349397,0.64628702,87714.0,87701.0,0.18983822]
[1769365349552,0.63476784,87712.0,87696.0,1.12053277]
[1769365349769,0.01140172,87706.0,87694.0,0.18983822]
[1769365349985,0.64616943,87707.0,87692.0,0.00027305]
[1769365350171,0.01140172,87706.0,87673.0,0.06843579]
[1769365350372,0.0114012,87710.0,87657.0,0.0002]
[1769365350373,0.26882078,87680.0,87669.0,1e-08]
[1769365350635,0.26882078,87678.0,87661.0,1.12053277]
[1769365350837,0.11353607,87677.0,87661.0,1.12053277]
[1769365351534,0.01140315,87695.0,87665.0,1.09696731]
[1769365351735,0.12787359,87693.0,87668.0,0.18499128]
[1769365351907,0.11336058,87692.0,87671.0,1.09696731]
[1769365352112,0.11336058,87692.0,87673.0,1.09696731]
[1769365352324,0.2743465,87691.0,87674.0,0.18499128]
[1769365352524,0.11336058,87690.0,87675.0,1.28195859]
[1769365353296,0.2743465,87691.0,87675.0,1.28195859]
[1769365354153,0.28575017,87691.0,87675.0,1.28195859]
[1769365354360,0.2743465,87691.0,87675.0,1.28195859]
[1769365354606,0.28575017,87691.0,87675.0,1.28195859]
[1769365354810,0.2743465,87691.0,87675.0,1.28195859]
[1769365355230,0.28575017,87691.0,87675.0,1.28195859]
[1769365355439,0.01140406,87688.0,87675.0,1.28195859]
[1769365356039,0.01140432,87686.0,87675.0,0.18499128]
[1769365356235,0.01,87675.0,87664.0,0.18049707]
[1769365356550,0.01140641,87670.0,87663.0,0.000864]
[1769365356753,0.01140693,87666.0,87663.0,0.000864]
[1769365356958,0.01140693,87666.0,87657.0,0.0002]
[1769365356959,0.27349114,87665.0,87657.0,0.0002]
[1769365357158,0.01140719,87664.0,87657.0,0.00034199]
[1769365357628,0.27349114,87665.0,87657.0,0.00034199]
[1769365357830,0.01140823,87656.0,87646.0,0.17516]
[1769365358091,0.27309514,87660.0,87646.0,0.1753021]
[1769365358296,0.27309514,87660.0,87656.0,0.00034199]
[1769365358700,0.18608299,87665.0,87656.0,0.00034199]
[1769365358701,0.45917813,87665.0,87656.0,0.00034199]
[1769365358901,0.28450233,87664.0,87656.0,0.00034199]
[1769365359132,0.01140745,87662.0,87656.0,0.00034199]
[1769365359353,0.27309514,87663.0,87646.0,0.18063917]
[1769365359965,0.18608299,87665.0,87646.0,1.07700899]
[1769365360170,0.18608299,87665.0,87647.0,0.18049707]
[1769365360377,0.45917813,87665.0,87647.0,0.18049707]
[1769365360557,0.27309514,87664.0,87647.0,0.18049707]
[1769365360713,0.27309514,87664.0,87647.0,1.07686689]
[1769365360927,0.27309514,87664.0,87648.0,0.18049707]
[1769365361330,0.18608299,87671.0,87649.0,1.07686689]
[1769365361540,0.11288996,87670.0,87652.0,0.18049707]
[1769365361750,0.11288996,87670.0,87654.0,0.18049707]
[1769365362326,0.28450129,87672.0,87656.0,0.18049707]
[1769365362525,0.11288287,87671.0,87656.0,0.18049707]
[1769365364548,0.12428915,87671.0,87656.0,0.18049707]
[1769365364753,0.11288287,87670.0,87656.0,0.18049707]
[1769365364957,0.01140523,87679.0,87659.0,1.07686689]
[1769365365160,0.12430913,87678.0,87662.0,0.18049707]
[1769365365396,0.01140523,87679.0,87662.0,0.18049707]
[1769365365397,0.11290377,87677.0,87662.0,0.18049707]
[1769365365601,0.11290377,87676.0,87662.0,0.18049707]
[1769365365830,0.11290377,87675.0,87662.0,0.18049707]
[1769365366030,0.11290377,87674.0,87662.0,0.18049707]
[1769365366242,0.11290377,87673.0,87662.0,0.18049707]
[1769365366464,0.11290377,87672.0,87662.0,0.18049707]
[1769365366671,0.11290377,87671.0,87662.0,0.18049707]
[1769365366846,0.11290377,87670.0,87662.0,0.18049707]
[1769365367270,0.01140771,87660.0,87647.0,0.18049707]
[1769365367485,0.01140771,87660.0,87646.0,0.0001421]
[1769365367486,0.01140823,87656.0,87646.0,0.0001421]
[1769365368179,0.0114081,87657.0,87646.0,0.0001421]
[1769365368386,0.01140823,87656.0,87646.0,0.0001421]
[1769365368679,0.28450311,87658.0,87646.0,0.0001421]
[1769365369117,0.0114081,87657.0,87646.0,0.0001421]
[1769365369318,0.27309514,87658.0,87646.0,0.0001421]
[1769365369524,0.11310937,87657.0,87646.0,0.0001421]
[1769365370149,0.11276738,87657.0,87649.0,1.07686689]
[1769365370362,0.01140732,87663.0,87650.0,0.18049707]
[1769365370776,0.01170361,87667.0,87646.0,0.0001421]
[1769365370777,0.0911407,87667.0,87651.0,0.18049707]
[1769365370935,0.01140732,87663.0,87651.0,0.18049707]
[1769365371138,0.05703571,87665.0,87651.0,0.18049707]
[1769365371335,0.01140758,87661.0,87651.0,0.18049707]
[1769365371538,0.28450233,87664.0,87651.0,0.18049707]
[1769365371739,0.01140732,87663.0,87651.0,0.18049707]
[1769365371963,0.06844525,87662.0,87651.0,0.18049707]
[1769365372168,0.01140745,87662.0,87651.0,0.18049707]
[1769365372367,0.27309514,87664.0,87651.0,0.18049707]
[1769365372744,0.28450233,87664.0,87651.0,0.18049707]
[1769365372952,0.27309514,87664.0,87651.0,0.18049707]
[1769365373330,0.37564303,87664.0,87651.0,0.18049707]
[1769365373564,0.36423584,87664.0,87651.0,0.18049707]
[1769365374325,0.0911407,87662.0,87651.0,0.18049707]
[1769365374597,0.0911407,87662.0,87654.0,1.07686689]
[1769365374722,0.01140628,87671.0,87657.0,0.18049707]
[1769365375151,0.01140667,87668.0,87657.0,0.18049707]
[1769365375352,0.01140654,87669.0,87657.0,0.0105228]
[1769365375583,0.01140615,87672.0,87657.0,0.0105228]
[1769365376099,0.01140628,87671.0,87657.0,0.0105228]
[1769365376255,0.01140615,87672.0,87657.0,0.0105228]
[1769365376878,0.37473045,87673.0,87657.0,0.0105228]
[1769365376879,0.36332443,87673.0,87657.0,0.0105228]
[1769365377058,0.01140628,87671.0,87658.0,1.07686689]
[1769365377257,0.01140628,87671.0,87646.0,0.0001421]
[1769365377258,0.01140615,87672.0,87660.0,1.07686689]
[1769365377468,0.01140628,87671.0,87660.0,0.96263475]
[1769365377875,0.01140667,87668.0,87660.0,0.96263475]
[1769365378083,0.0114068,87667.0,87647.0,1.07686689]
[1769365378290,0.0114068,87667.0,87646.0,0.0001421]
[1769365378291,0.01140654,87669.0,87650.0,0.18049707]
[1769365378513,0.0114068,87667.0,87651.0,1.25736396]
[1769365378713,0.01140654,87669.0,87651.0,1.25736396]
[1769365379171,0.01140654,87669.0,87652.0,0.18049707]
[1769365379406,0.01140667,87668.0,87652.0,1.25736396]
[1769365379784,0.48782066,87670.0,87652.0,1.25736396]
[1769365380141,0.01140706,87665.0,87652.0,1.25736396]
[1769365380343,0.01140719,87664.0,87652.0,1.25736396]
[1769365380800,0.01140771,87660.0,87647.0,0.18049707]
[1769365381316,0.01140823,87656.0,87648.0,1.07686689]
[1769365381466,0.0114081,87657.0,87648.0,1.07686689]
[1769365381663,0.01140771,87660.0,87646.0,0.0001421]
[1769365381664,1.15337284,87653.0,87646.0,0.0001421]
[1769365381982,0.01140888,87651.0,87646.0,0.0001421]
[1769365382193,0.1138879,87650.0,87646.0,0.0001421]
[1769365382388,0.12529704,87649.0,87646.0,0.0001421]
[1769365382549,0.0684526,87652.0,87646.0,0.0001421]
[1769365382550,0.1138879,87648.0,87646.0,0.0001421]
[1769365382755,0.1138879,87647.0,87646.0,0.0001421]
[1769365383241,0.18608299,87657.0,87646.0,0.0001421]
[1769365383463,0.01140875,87652.0,87646.0,0.0001421]
[1769365383662,0.01140862,87653.0,87646.0,0.0001421]
[1769365383811,0.01140836,87655.0,87646.0,0.0001421]
[1769365384016,0.18608299,87657.0,87646.0,0.0001421]
[1769365384229,0.06844441,87664.0,87646.0,0.0001421]
[1769365384427,0.01140745,87662.0,87646.0,0.0001421]
[1769365384674,1.07176626,87662.0,87646.0,0.0001421]
[1769365384927,1.06035881,87662.0,87646.0,0.0001421]
[1769365385511,0.01140784,87659.0,87646.0,0.0001421]
[1769365385655,1.06035881,87660.0,87646.0,0.0001421]
[1769365386066,0.0114081,87657.0,87646.0,0.0001421]
[1769365386463,0.01140628,87671.0,87649.0,1.13049049]
[1769365386689,0.01140628,87671.0,87653.0,1.13049049]
[1769365386690,0.14699128,87670.0,87653.0,1.13049049]
[1769365386866,0.01140641,87670.0,87654.0,0.14791741]
[1769365387066,0.61117594,87672.0,87654.0,0.11730113]
[1769365387272,0.47559107,87672.0,87655.0,1.13049049]
[1769365387500,0.47559107,87672.0,87656.0,1.13049049]
[1769365387674,0.01140602,87673.0,87657.0,1.13049049]
[1769365387914,0.01140602,87673.0,87658.0,0.1744254]
[1769365388455,0.3336348,87675.0,87658.0,0.1744254]
[1769365388636,0.01140589,87674.0,87658.0,0.0608872]
[1769365389225,0.48699709,87673.0,87658.0,0.0608872]
[1769365389428,0.47559107,87673.0,87658.0,0.0608872]
[1769365391524,0.48699709,87673.0,87658.0,0.0608872]
[1769365391728,0.47559107,87673.0,87658.0,0.0608872]
[1769365391973,0.18664418,87675.0,87658.0,0.0608872]
[1769365392358,0.18664418,87675.0,87666.0,0.05]
[1769365392567,0.47559107,87674.0,87658.0,0.0608872]
[1769365393352,0.01140628,87671.0,87653.0,1.13049049]
[1769365393557,0.48699787,87667.0,87648.0,0.1744254]
[1769365393757,0.48699787,87667.0,87651.0,1.13049049]
[1769365393758,0.01140706,87665.0,87651.0,1.13049049]
[1769365394041,0.01140693,87666.0,87651.0,1.13049049]
[1769365394313,0.47559107,87668.0,87651.0,1.13049049]
[1769365395095,0.01140602,87673.0,87651.0,1.13049049]
[1769365395322,0.65985641,87670.0,87651.0,1.13049049]
[1769365395529,0.11439988,87669.0,87646.0,0.0001421]
[1769365395746,0.47559107,87660.0,87646.0,0.0001421]
[1769365395963,0.65985641,87658.0,87646.0,0.0001421]
[1769365396209,0.11410307,87657.0,87646.0,0.0001421]
[1769365396408,0.11410307,87656.0,87646.0,0.0001421]
[1769365396648,0.65985641,87658.0,87646.0,0.0001421]
[1769365396649,0.11410307,87655.0,87646.0,0.0001421]
[1769365396849,0.11410307,87654.0,87646.0,0.0001421]
[1769365397211,0.11410307,87653.0,87646.0,1.25984511]
[1769365397401,0.47559107,87668.0,87649.0,0.18662081]
[1769365397603,0.00029681,87667.0,87651.0,1.25970301]
[1769365398460,0.47199351,87668.0,87651.0,1.25970301]
[1769365399297,0.01140706,87665.0,87651.0,0.18662081]
[1769365399504,0.18426534,87665.0,87646.0,0.0001421]
[1769365399723,0.58841244,87649.0,87626.0,0.18662081]
[1769365399940,0.01140849,87654.0,87634.0,0.0003417]
[1769365399941,0.55874914,87647.0,87634.0,0.0003417]
[1769365401055,0.15460204,87648.0,87634.0,0.0003417]
[1769365401256,0.18426534,87657.0,87634.0,1.0734239]
[1769365402119,0.31985021,87665.0,87635.0,0.01141096]
[1769365402354,0.18426534,87665.0,87639.0,0.18662081]
[1769365402565,0.18426534,87665.0,87643.0,0.18662081]
[1769365402767,0.18426534,87665.0,87644.0,1.25970301]
[1769365403200,0.18426534,87665.0,87645.0,0.18662081]
[1769365403376,0.18426534,87665.0,87646.0,1.0730822]
[1769365403652,0.14699128,87670.0,87641.0,0.01141018]
[1769365403653,0.18426534,87670.0,87649.0,1.25970301]
[1769365404463,0.19567175,87670.0,87649.0,1.25970301]
[1769365404880,0.13558487,87673.0,87649.0,0.18662081]
[1769365405096,0.18426534,87662.0,87642.0,1.25970301]
[1769365405708,0.18426534,87662.0,87643.0,1.0730822]
[1769365405920,0.18426534,87662.0,87645.0,1.25970301]
[1769365406131,0.18426534,87662.0,87645.0,1.0730822]
[1769365406334,0.18426534,87662.0,87647.0,1.0730822]
[1769365406563,0.18426534,87669.0,87647.0,1.0730822]
[1769365406974,0.18426534,87669.0,87647.0,1.25970301]
[1769365407389,0.14699062,87675.0,87648.0,0.18662081]
[1769365407593,0.01140615,87672.0,87650.0,0.18662081]
[1769365407798,0.01140641,87670.0,87652.0,1.25970301]
[1769365408021,0.01140615,87672.0,87652.0,1.25970301]
[1769365408247,0.19567149,87672.0,87652.0,1.25970301]
[1769365408439,0.18426534,87672.0,87652.0,1.25970301]
[1769365408695,0.01140562,87676.0,87653.0,0.18662081]